bitfinex/quotes_ETHUSD_20230118
["timestamp","ask_amount","ask_price","bid_price","bid_amount"]
[1674042146451,0.51070169,1578.3,1578.2,9.39951016]
[1674042147108,0.51070169,1578.3,1578.2,3.06320016]
[1674042147320,0.51070169,1578.3,1578.2,2.99720016]
[1674042148150,4.24979135,1578.3,1578.1,3.766]
[1674042148404,4.74715202,1578.2,1578.1,0.69667437]
[1674042148563,20.64171089,1578.2,1578.1,0.69667437]
[1674042148819,20.70771089,1578.2,1578.1,0.69667437]
[1674042149127,19.37944545,1578.2,1578.1,0.69667437]
[1674042149342,19.37944545,1578.2,1578.1,0.26557437]
[1674042149708,20.70852971,1578.2,1578.1,0.26557437]
[1674042149918,20.44601648,1578.2,1578.1,0.26557437]
[1674042150127,19.04464232,1578.2,1578.1,0.26557437]
[1674042150393,25.38097232,1578.2,1578.1,0.26557437]
[1674042151739,26.37680404,1578.2,1578.1,0.26557437]
[1674042152122,25.04900446,1578.2,1578.1,0.26557437]
[1674042152332,26.11557549,1578.2,1578.1,0.26557437]
[1674042152542,25.04900446,1578.2,1578.1,0.26557437]
[1674042153176,25.0450156,1578.2,1578.1,0.26557437]
[1674042153704,24.71264466,1578.2,1578.1,0.26557437]
[1674042155124,27.31858663,1578.2,1578.1,0.26557437]
[1674042156238,27.98167006,1578.2,1578.1,0.26557437]
[1674042157233,26.98583834,1578.2,1578.1,0.26557437]
[1674042157621,27.98167006,1578.2,1578.1,0.26557437]
[1674042158135,26.98583834,1578.2,1578.1,0.26557437]
[1674042158866,25.91926731,1578.2,1578.1,0.26557437]
[1674042161425,25.91926731,1578.2,1577.7,3.0]
[1674042161608,1.207,1577.8,1577.7,3.0]
[1674042162013,1.207,1577.8,1577.7,3.4756]
[1674042164428,1.207,1577.8,1577.7,3.0]
[1674042166539,1.209,1577.8,1577.7,3.0]
[1674042166790,1.207,1577.8,1577.7,3.0]
[1674042167108,1.968054,1577.8,1577.7,3.0]
[1674042170734,1.968054,1577.8,1577.7,3.3]
[1674042174373,1.207,1577.8,1577.7,3.3]
[1674042175741,6.33763,1577.9,1577.7,3.3]
[1674042176053,6.40363,1577.9,1577.7,3.3]
[1674042176266,1.207,1577.8,1577.7,0.3]
[1674042176422,23.40510606,1577.8,1577.7,0.3]
[1674042176633,24.13418949,1577.8,1577.7,0.3]
[1674042176968,24.13418878,1577.8,1577.7,0.3]
[1674042177314,22.598653,1577.8,1577.7,0.29714137]
[1674042178474,22.123153,1577.8,1577.7,0.29714137]
[1674042179707,23.65903537,1577.8,1577.7,0.29714137]
[1674042180366,25.34053537,1577.8,1577.7,0.29714137]
[1674042180527,26.73820094,1577.8,1577.7,0.29714137]
[1674042181270,27.40121813,1577.8,1577.7,0.29714137]
[1674042182642,26.73820094,1577.8,1577.7,0.29714137]
[1674042183039,27.40146456,1577.8,1577.7,0.29714137]
[1674042183303,26.40563284,1577.8,1577.7,0.29714137]
[1674042184259,27.40146456,1577.8,1577.7,0.29714137]
[1674042185199,27.40157356,1577.8,1577.7,0.29714137]
[1674042185717,26.40574184,1577.8,1577.7,0.29714137]
[1674042186123,27.40157356,1577.8,1577.7,0.29714137]
[1674042186560,26.73820094,1577.8,1577.7,0.29714137]
[1674042187363,29.85482501,1577.8,1577.7,0.29714137]
[1674042188147,31.18262459,1577.8,1577.7,0.29714137]
[1674042188499,29.85482501,1577.8,1577.7,0.29714137]
[1674042189032,29.98662459,1577.8,1577.7,0.29714137]
[1674042189244,28.65882501,1577.8,1577.7,0.29714137]
[1674042190714,25.54220094,1577.8,1577.7,0.29714137]
[1674042191149,26.20576254,1577.8,1577.7,0.29714137]
[1674042191338,25.54220094,1577.8,1577.7,0.29714137]
[1674042191990,26.20570469,1577.8,1577.7,0.29714137]
[1674042192599,25.54220094,1577.8,1577.7,0.29714137]
[1674042193181,26.20566349,1577.8,1577.7,0.29714137]
[1674042194389,25.54220094,1577.8,1577.7,0.29714137]
[1674042196656,26.87000052,1577.8,1577.7,0.29714137]
[1674042197016,25.54220094,1577.8,1577.7,0.29714137]
[1674042198761,25.54220094,1577.8,1577.7,0.29458753]
[1674042201690,26.87000052,1577.8,1577.7,0.29458753]
[1674042201957,25.8741688,1577.8,1577.7,0.29458753]
[1674042202627,26.32977151,1577.8,1577.7,0.29458753]
[1674042202832,1.29821478,1577.6,1577.5,1.04178114]
[1674042203189,14.86937346,1577.6,1577.5,1.04178114]
[1674042203357,15.8081724,1577.6,1577.5,1.04178114]
[1674042203768,22.1469124,1577.6,1577.5,1.04178114]
[1674042204035,23.1426982,1577.6,1577.5,1.04178114]
[1674042204184,22.478841,1577.6,1577.5,1.04178114]
[1674042205022,24.0177696,1577.6,1577.5,1.04178114]
[1674042205287,25.01360083,1577.6,1577.5,1.04178114]
[1674042205828,25.01099885,1577.6,1577.5,1.04178114]
[1674042206180,24.49076762,1577.6,1577.5,1.04178114]
[1674042206444,25.48643766,1577.6,1577.5,1.04178114]
[1674042206663,24.49076762,1577.6,1577.5,1.04178114]
[1674042207249,25.48623707,1577.6,1577.5,1.04178114]
[1674042207905,24.15852267,1577.6,1577.5,1.04178114]
[1674042208316,25.48623707,1577.6,1577.5,1.04178114]
[1674042209177,24.15852267,1577.6,1577.5,1.04178114]
[1674042211494,24.49076762,1577.6,1577.5,1.04178114]
[1674042211866,24.49076762,1577.6,1577.5,1.34178114]
[1674042213289,24.49076762,1577.6,1577.5,1.04178114]
[1674042213957,24.49076762,1577.6,1577.5,1.03157557]
[1674042214287,26.15337033,1577.6,1577.5,1.03157557]
[1674042215324,26.15382729,1577.6,1577.5,1.03157557]
[1674042215535,24.82565593,1577.6,1577.5,1.03157557]
[1674042216008,26.15383019,1577.6,1577.5,1.03157557]
[1674042216329,24.82565593,1577.6,1577.5,1.03157557]
[1674042217777,0.25919673,1577.4,1577.3,0.04368976]
[1674042217986,20.2742148,1577.4,1577.3,0.04368976]
[1674042218201,21.21301374,1577.4,1577.3,0.04368976]
[1674042219239,21.87723955,1577.4,1577.3,0.04368976]
[1674042219976,20.88084148,1577.4,1577.3,0.04368976]
[1674042220320,21.75102596,1577.4,1577.3,0.04368976]
[1674042221315,20.21400121,1577.4,1577.3,0.04368976]
[1674042221739,21.71332853,1577.4,1577.3,0.04368976]
[1674042221950,20.87822702,1577.4,1577.3,0.04368976]
[1674042222161,21.71333585,1577.4,1577.3,0.04368976]
[1674042223051,15.37379585,1577.4,1577.3,0.04368976]
[1674042223224,8.16408876,1577.4,1577.3,0.04368976]
[1674042223441,6.66473673,1577.4,1577.3,0.04368976]
[1674042223876,0.32519673,1577.4,1577.3,0.04368976]
[1674042224094,0.25919673,1577.4,1577.3,0.04368976]
[1674042224551,0.25919673,1577.4,1577.3,0.51938976]
[1674042226417,0.25919673,1577.4,1577.3,2.06802874]
[1674042226587,0.25919673,1577.4,1577.3,5.06802874]
[1674042226807,9.673e-05,1577.4,1577.3,5.13402874]
[1674042227452,9.673e-05,1577.4,1577.3,11.47396874]
[1674042227674,0.74883861,1577.6,1577.3,11.47396874]
[1674042227839,0.66422581,1577.5,1577.4,1.62309687]
[1674042228050,0.66422581,1577.5,1577.4,4.62309687]
[1674042228051,1.49188628,1577.5,1577.4,4.62309687]
[1674042229981,0.66422581,1577.5,1577.4,4.62309687]
[1674042230934,2.48828435,1577.6,1577.4,4.62309687]
[1674042231147,1.66062388,1577.6,1577.3,1.30568976]
[1674042231374,0.66444984,1577.4,1577.3,0.04368976]
[1674042231828,1.49224548,1577.4,1577.3,0.04368976]
[1674042232579,7.83178548,1577.4,1577.3,0.04368976]
[1674042232779,15.23372355,1577.4,1577.3,0.04368976]
[1674042232990,14.56927371,1577.4,1577.3,0.04368976]
[1674042233196,15.23377654,1577.4,1577.3,0.04368976]
[1674042234268,8.89423654,1577.4,1577.3,0.04368976]
[1674042237524,7.89783847,1577.4,1577.3,0.04368976]
[1674042237737,1.55829847,1577.4,1577.3,0.04368976]
[1674042237944,1.49229847,1577.4,1577.3,0.04368976]
[1674042238784,2.48869654,1577.4,1577.3,0.04368976]
[1674042239044,1.49229847,1577.4,1577.3,0.04368976]
[1674042239801,1.49229847,1577.4,1577.3,1.32068976]
[1674042243125,1.49229847,1577.4,1577.3,0.04368976]
[1674042244165,2.98576249,1577.4,1577.3,0.04368976]
[1674042244515,2.9857765,1577.4,1577.3,0.04368976]
[1674042246421,3.98217457,1577.4,1577.3,0.04368976]
[1674042248447,4.57170661,1577.4,1577.3,0.04368976]
[1674042248827,1.25444285,1577.4,1577.3,0.04368976]
[1674042249192,1.91935669,1577.4,1577.3,0.04368976]
[1674042249557,1.25444285,1577.4,1577.3,0.04130674]
[1674042251156,1.91937538,1577.4,1577.3,0.04130674]
[1674042254177,0.66493253,1577.4,1577.3,0.04130674]
[1674042254387,7.00447253,1577.4,1577.3,0.04130674]
[1674042254593,7.73545655,1577.4,1577.3,0.04130674]
[1674042255600,14.07499655,1577.4,1577.3,0.04130674]
[1674042256436,21.95422271,1577.4,1577.3,0.04130674]
[1674042256648,21.95422271,1577.4,1577.2,0.007]
[1674042256649,0.00346017,1577.2,1577.1,11.96398827]
[1674042256805,8.55228077,1577.2,1577.1,11.96398827]
[1674042257010,15.78374379,1577.2,1577.1,0.11158827]
[1674042257377,17.11371792,1577.2,1577.1,0.04558827]
[1674042257602,15.78374379,1577.2,1577.1,0.04558827]
[1674042258542,3.10306379,1577.2,1577.1,0.04558827]
[1674042258737,15.71774379,1577.2,1577.1,0.04558827]
[1674042258946,15.78374379,1577.2,1577.1,0.04558827]
[1674042261483,16.44800121,1577.2,1577.1,0.04558827]
[1674042262015,22.12408379,1577.2,1577.1,0.04558827]
[1674042262164,23.63342657,1577.2,1577.1,0.04558827]
[1674042262740,24.9634007,1577.2,1577.1,0.04558827]
[1674042263899,23.63342657,1577.2,1577.1,0.04558827]
[1674042264110,23.29998097,1577.2,1577.1,0.04558827]
[1674042264491,24.29746157,1577.2,1577.1,0.04558827]
[1674042264701,16.95964097,1577.2,1577.1,0.04558827]
[1674042264912,15.92599819,1577.2,1577.1,0.04558827]
[1674042268078,9.58565819,1577.2,1577.1,0.04558827]
[1674042268470,8.09650017,1577.2,1577.1,0.04558827]
[1674042270499,6.88550017,1577.2,1577.1,0.04558827]
[1674042270712,6.40980017,1577.2,1577.1,0.04558827]
[1674042272675,7.89541811,1577.2,1577.1,0.04558827]
[1674042273242,7.07383517,1577.2,1577.1,0.04558827]
[1674042273553,7.89550582,1577.2,1577.1,0.04558827]
[1674042273977,1.55516582,1577.2,1577.1,0.04558827]
[1674042274308,0.00346017,1577.2,1577.1,1.25658827]
[1674042274681,0.00346017,1577.2,1577.1,0.04558827]
[1674042274921,0.00346017,1577.2,1577.1,1.20458827]
[1674042275120,0.00546017,1577.2,1577.1,0.04558827]
[1674042275357,0.00346017,1577.2,1577.1,0.04558827]
[1674042276978,0.00346017,1577.2,1577.1,1.20458827]
[1674042277193,0.00346017,1577.2,1577.1,2.41558827]
[1674042277517,0.00346017,1577.2,1577.1,8.59847832]
[1674042277670,0.00346017,1577.2,1577.1,8.66447832]
[1674042279477,7.069805,1577.4,1577.1,30.80335239]
[1674042279478,0.066,1577.4,1577.1,30.80335239]
[1674042279635,8.915635,1577.5,1577.2,1.5972]
[1674042279844,8.915635,1577.5,1577.2,7.93727]
[1674042280087,8.915635,1577.5,1577.2,17.34739724]
[1674042281431,8.915635,1577.5,1577.2,20.46402131]
[1674042281640,0.066,1577.5,1577.3,1.207]
[1674042281852,0.664035,1577.6,1577.3,7.54678]
[1674042282098,1.48521029,1577.6,1577.3,7.61278]
[1674042282272,1.48521029,1577.6,1577.3,10.41386013]
[1674042284310,1.48521029,1577.6,1577.3,13.5304842]
[1674042284525,1.48521029,1577.6,1577.4,0.3774]
[1674042285199,1.48521029,1577.6,1577.4,6.71689]
[1674042285410,1.48521029,1577.6,1577.4,6.78289]
[1674042285620,1.48521029,1577.6,1577.4,9.44162142]
[1674042286297,1.48521029,1577.6,1577.4,9.06422142]
[1674042287837,0.664035,1577.6,1577.4,9.06422142]
[1674042288049,1.48496102,1577.6,1577.4,9.06422142]
[1674042291931,1.48496102,1577.6,1577.4,2.72473142]
[1674042292142,1.48496102,1577.6,1577.4,2.65873142]
[1674042293353,9.3802156,1577.7,1577.4,2.65873142]
[1674042293668,8.382735,1577.7,1577.4,2.65873142]
[1674042294390,9.3802156,1577.7,1577.4,2.65873142]
[1674042294720,9.3802156,1577.7,1577.3,29.6011542]
[1674042294912,9.3802156,1577.7,1577.4,3.0]
[1674042295732,8.382735,1577.7,1577.4,3.0]
[1674042296343,9.3802156,1577.7,1577.4,3.0]
[1674042296983,1.48376015,1577.6,1577.4,3.0]
[1674042297202,0.14837601,1577.5,1577.4,3.0]
[1674042297408,7.068895,1577.6,1577.3,3.457]
[1674042297630,8.0663756,1577.6,1577.3,3.391]
[1674042299238,8.0663756,1577.6,1577.3,3.391]
[1674042301555,7.068895,1577.6,1577.3,3.391]
[1674042301789,0.730035,1577.6,1577.3,9.7309]
[1674042301916,0.664035,1577.6,1577.3,9.7969]
[1674042302128,1.48382092,1577.6,1577.3,3.457]
[1674042302337,1.48382092,1577.6,1577.3,3.391]
[1674042302923,7.82256092,1577.6,1577.3,3.391]
[1674042303078,7.068775,1577.6,1577.3,3.391]
[1674042303296,6.40474,1577.6,1577.3,6.884677]
[1674042303501,6.40474,1577.6,1577.3,6.94800719]
[1674042303715,0.59845181,1577.5,1577.3,6.94800719]
[1674042304295,0.59845181,1577.5,1577.3,3.45433019]
[1674042304441,0.59845181,1577.5,1577.3,3.38833019]
[1674042304650,1.26248681,1577.5,1577.3,3.38833019]
[1674042306604,1.26248681,1577.5,1577.3,3.0]
[1674042309219,3.08010414,1577.5,1577.3,3.0]
[1674042309394,2.25996741,1577.5,1577.3,3.0]
[1674042311484,1.48471305,1577.4,1577.3,3.0]
[1674042312059,0.664035,1577.4,1577.3,3.0]
[1674042312702,1.59593241,1577.5,1577.3,3.0]
[1674042312703,2.25996741,1577.5,1577.3,3.0]
[1674042312914,3.89332956,1577.5,1577.3,3.0]
[1674042313529,1.48511143,1577.4,1577.3,3.0]
[1674042314338,1.59593241,1577.5,1577.3,3.0]
[1674042314339,1.26248681,1577.5,1577.3,3.0]
[1674042315377,0.59845181,1577.5,1577.3,12.45649407]
[1674042315586,1.26248681,1577.5,1577.3,17.08986948]
[1674042316042,0.59845181,1577.5,1577.3,17.08986948]
[1674042317114,1.26248681,1577.5,1577.3,17.08986948]
[1674042318478,1.26248681,1577.5,1577.3,12.52249407]
[1674042319415,0.59845181,1577.5,1577.3,18.86243407]
[1674042322237,1.26248681,1577.5,1577.3,18.86243407]
[1674042324441,1.26248681,1577.5,1577.4,0.4757]
[1674042324664,1.26248681,1577.5,1577.3,19.33813407]
[1674042324850,1.26248681,1577.5,1577.3,23.90548948]
[1674042325676,0.59845181,1577.5,1577.3,23.90548948]
[1674042325888,1.26248681,1577.5,1577.3,23.90548948]
[1674042327171,1.26248681,1577.5,1577.3,12.99819407]
[1674042327521,2.25996741,1577.5,1577.3,12.99819407]
[1674042329283,2.25996741,1577.5,1577.3,6.65832407]
[1674042329473,2.25996741,1577.5,1577.3,6.18262407]
[1674042330211,1.48509318,1577.4,1577.3,6.18262407]
[1674042332045,1.26248681,1577.5,1577.3,6.18262407]
[1674042332279,2.25996741,1577.5,1577.3,6.18262407]
[1674042333730,1.26248681,1577.5,1577.3,6.18262407]
[1674042334050,2.25996741,1577.5,1577.3,6.18262407]
[1674042335254,1.48521058,1577.4,1577.3,6.18262407]
[1674042335578,2.25996741,1577.5,1577.3,6.18262407]
[1674042335788,1.48519616,1577.4,1577.3,6.18262407]
[1674042337481,0.664035,1577.4,1577.3,6.18262407]
[1674042338040,1.48503855,1577.4,1577.3,6.18262407]
[1674042338294,1.48503855,1577.4,1577.3,3.066]
[1674042338600,2.12658125,1577.4,1577.3,3.0]
[1674042339653,8.46612125,1577.4,1577.3,3.0]
[1674042339824,8.53212125,1577.4,1577.1,3.11158827]
[1674042340021,1.48597345,1577.3,1577.1,3.04558827]
[1674042340714,8.3760876,1577.4,1577.1,3.04558827]
[1674042344694,2.0365476,1577.4,1577.1,3.04558827]
[1674042344863,1.9705476,1577.4,1577.1,3.04558827]
[1674042345069,1.48579593,1577.3,1577.1,3.04558827]
[1674042345315,1.9705476,1577.4,1577.1,3.04558827]
[1674042345490,0.6649699,1577.3,1577.1,3.04558827]
[1674042345940,1.48572772,1577.3,1577.1,3.04558827]
[1674042347584,1.3055777,1577.4,1577.1,3.04558827]
[1674042347585,0.973067,1577.4,1577.1,3.04558827]
[1674042348374,0.6649699,1577.4,1577.1,3.04558827]
[1674042348577,1.48567791,1577.4,1577.1,3.04558827]
[1674042350520,1.48567791,1577.4,1577.1,9.38632827]
[1674042350894,1.48567791,1577.4,1577.1,9.45232827]
[1674042353448,2.48315851,1577.4,1577.1,9.45232827]
[1674042353752,1.48567791,1577.3,1577.1,9.45232827]
[1674042354124,1.0634806,1577.4,1577.1,9.45232827]
[1674042354125,0.6649699,1577.4,1577.1,9.45232827]
[1674042354332,1.48548735,1577.4,1577.1,9.45232827]
[1674042354541,1.48066589,1577.4,1577.1,9.45232827]
[1674042359379,2.47814649,1577.4,1577.1,9.45232827]
[1674042359590,0.82051745,1577.3,1577.1,3.11158827]
[1674042359937,0.82051745,1577.3,1577.1,0.04558827]
[1674042359938,7.3374906,1577.3,1577.1,0.04558827]
[1674042360152,7.4034906,1577.3,1577.1,0.04558827]
[1674042360323,1.56111521,1577.2,1577.1,0.04558827]
[1674042361011,0.82076615,1577.2,1577.1,0.04558827]
[1674042361324,7.4034906,1577.3,1577.1,0.04558827]
[1674042361325,14.07841,1577.3,1577.1,0.04558827]
[1674042364441,14.74330859,1577.3,1577.1,0.04558827]
[1674042370117,1.48581058,1577.2,1577.1,0.04558827]
[1674042372518,1.48781058,1577.2,1577.1,0.04558827]
[1674042372778,1.48581058,1577.2,1577.1,0.04558827]
[1674042375110,1.48583278,1577.2,1577.1,0.04558827]
[1674042376542,1.48587697,1577.2,1577.1,0.04558827]
[1674042376748,15.74078919,1577.3,1577.1,0.04558827]
[1674042377001,0.66489859,1577.2,1577.1,0.04558827]
[1674042377367,15.74078919,1577.3,1577.1,0.04558827]
[1674042377682,0.66489859,1577.2,1577.1,0.04558827]
[1674042377895,1.48586909,1577.2,1577.1,0.04166136]
[1674042381922,0.66489859,1577.2,1577.1,0.04166136]
[1674042382255,1.48593275,1577.2,1577.1,0.04166136]
[1674042390882,4.2725931,1577.2,1577.1,0.04166136]
[1674042391187,10.28052804,1577.2,1577.1,0.04166136]
[1674042391410,10.34652804,1577.2,1577.1,0.04166136]
[1674042391981,16.68686804,1577.2,1577.1,0.04166136]
[1674042396551,17.68408983,1577.2,1577.1,0.04166136]
[1674042396769,17.68409214,1577.2,1577.1,0.04166136]
[1674042396910,17.68410591,1577.2,1577.1,0.04166136]
[1674042397123,17.68410271,1577.2,1577.1,0.04166136]
[1674042397908,11.34376271,1577.2,1577.1,0.04166136]
[1674042399227,10.01378858,1577.2,1577.1,0.04166136]
[1674042400700,3.340981,1577.2,1577.1,0.03865844]
[1674042400908,1.48580125,1577.2,1577.1,0.03865844]
[1674042401581,2.48303592,1577.2,1577.1,0.03865844]
[1674042401913,1.48580125,1577.2,1577.1,0.03865844]
[1674042402080,2.48303592,1577.2,1577.1,0.03865844]
[1674042406018,1.81826883,1577.2,1577.1,0.03865844]
[1674042409092,0.73091414,1577.3,1577.1,5.61612458]
[1674042409224,0.66491414,1577.3,1577.2,7.55162407]
[1674042409428,2.41581462,1577.4,1577.2,13.95796407]
[1674042409643,0.99923467,1577.4,1577.3,3.11662407]
[1674042409892,0.99723467,1577.4,1577.3,3.11662407]
[1674042410447,1.75089797,1577.4,1577.3,3.11662407]
[1674042410893,1.66203552,1577.4,1577.3,3.11662407]
[1674042411422,2.41569882,1577.4,1577.3,3.11662407]
[1674042413706,1.41846415,1577.4,1577.3,3.11662407]
[1674042420237,1.26325266,1577.5,1577.2,10.61134]
[1674042420472,0.66480085,1577.4,1577.2,3.066]
[1674042420691,1.41785184,1577.4,1577.2,3.0]
[1674042422641,2.41508651,1577.4,1577.2,3.0]
[1674042426633,0.66480085,1577.3,1577.2,3.0]
[1674042426850,1.66203552,1577.4,1577.2,3.0]
[1674042427056,3.45106413,1577.4,1577.2,3.0]
[1674042427266,0.66480085,1577.3,1577.2,3.0]
[1674042427686,1.41774296,1577.3,1577.2,3.0]
[1674042428144,2.69816328,1577.4,1577.2,3.0]
[1674042428456,1.70092861,1577.4,1577.2,3.0]
[1674042428672,2.69816328,1577.4,1577.2,3.0]
[1674042430571,1.68740327,1577.3,1577.2,3.0]
[1674042431086,2.01983709,1577.3,1577.1,11.97725844]
[1674042431401,0.66422634,1577.2,1577.1,11.97725844]
[1674042431613,0.66422634,1577.2,1577.1,14.97725844]
[1674042431787,0.66422634,1577.2,1577.1,3.10465844]
[1674042432001,1.41705054,1577.2,1577.1,0.03865844]
[1674042432441,0.93263649,1577.2,1577.1,0.03578089]
[1674042432631,2.01846902,1577.2,1577.1,0.03578089]
[1674042433154,2.6828037,1577.2,1577.1,0.03578089]
[1674042436263,2.01846902,1577.2,1577.1,0.03578089]
[1674042436561,15.36438201,1577.2,1577.1,0.03578089]
[1674042436867,17.23499983,1577.2,1577.1,0.03578089]
[1674042437080,15.57253217,1577.2,1577.1,0.03578089]
[1674042437256,18.2627697,1577.2,1577.1,0.03578089]
[1674042438078,16.93384852,1577.2,1577.1,0.03578089]
[1674042439606,16.59998004,1577.2,1577.1,0.03578089]
[1674042440033,15.57221353,1577.2,1577.1,0.03578089]
[1674042440556,16.56841041,1577.2,1577.1,0.03578089]
[1674042440708,16.09271041,1577.2,1577.1,0.03578089]
[1674042442213,14.76411123,1577.2,1577.1,0.03578089]
[1674042442426,16.09271041,1577.2,1577.1,0.03578089]
[1674042443662,14.76411123,1577.2,1577.1,0.03578089]
[1674042445648,16.09271041,1577.2,1577.1,0.03578089]
[1674042445910,14.76411123,1577.2,1577.1,0.03578089]
[1674042449485,8.42377123,1577.2,1577.1,0.03578089]
[1674042449855,21.10445123,1577.2,1577.1,0.03578089]
[1674042450105,22.13221774,1577.2,1577.1,0.03578089]
[1674042451323,21.13602086,1577.2,1577.1,0.03578089]
[1674042451538,24.1270877,1577.2,1577.0,0.04313165]
[1674042451797,2.75538893,1577.1,1577.0,0.04313165]
[1674042452120,9.09613893,1577.1,1577.0,0.04313165]
[1674042452274,9.16213893,1577.1,1577.0,0.04313165]
[1674042452480,23.04763893,1577.1,1577.0,0.04313165]
[1674042452876,23.85616853,1577.1,1577.0,0.04313165]
[1674042453014,23.38046853,1577.1,1577.0,0.04313165]
[1674042454749,23.04740691,1577.1,1577.0,0.04313165]
[1674042454897,23.4330791,1577.1,1577.0,0.04313165]
[1674042455110,22.2290791,1577.1,1577.0,0.04313165]
[1674042456794,23.55767828,1577.1,1577.0,0.04313165]
[1674042457269,23.03784072,1577.1,1577.0,0.04313165]
[1674042460112,22.70490888,1577.1,1577.0,0.04313165]
[1674042460271,24.03350806,1577.1,1577.0,0.04313165]
[1674042460630,23.55780806,1577.1,1577.0,0.04313165]
[1674042461157,22.56214072,1577.1,1577.0,0.04313165]
[1674042461728,23.55817079,1577.1,1577.0,0.04313165]
[1674042461943,22.89356806,1577.1,1577.0,0.04313165]
[1674042463882,22.22957161,1577.1,1577.0,0.04313165]
[1674042466643,22.56214072,1577.1,1577.0,0.04313165]
[1674042469797,9.88064072,1577.1,1577.0,0.04313165]
[1674042469969,8.87384557,1577.1,1577.0,0.04313165]
[1674042473585,8.87384557,1577.1,1577.0,0.03967043]
[1674042473734,9.87139843,1577.1,1577.0,0.03967043]
[1674042477644,8.54279925,1577.1,1577.0,0.03967043]
[1674042479053,9.87139843,1577.1,1577.0,0.03967043]
[1674042479629,8.54279925,1577.1,1577.0,0.03967043]
[1674042480422,9.87139843,1577.1,1577.0,0.03967043]
[1674042481210,8.54279925,1577.1,1577.0,0.03967043]
[1674042482509,8.87384557,1577.1,1577.0,0.03967043]
[1674042482721,23.09621405,1577.1,1577.0,0.03967043]
[1674042485202,21.88921405,1577.1,1577.0,0.03967043]
[1674042486523,21.88971019,1577.1,1577.0,0.03967043]
[1674042489494,20.22674639,1577.1,1577.0,0.03967043]
[1674042489805,1.0,1577.0,1576.9,0.04030706]
[1674042489965,22.43947129,1577.0,1576.9,0.04030706]
[1674042490332,22.50547129,1577.0,1576.9,0.04030706]
[1674042491696,20.8422742,1577.0,1576.9,0.04030706]
[1674042492103,22.50500482,1577.0,1576.9,0.04030706]
[1674042494342,23.2452742,1577.0,1576.9,0.04030706]
[1674042494651,23.2452742,1577.0,1576.7,0.05386983]
[1674042494652,1.02796876,1576.8,1576.7,0.05386983]
[1674042494973,21.71644568,1576.8,1576.7,0.05386983]
[1674042495135,24.93726988,1576.8,1576.7,0.05386983]
[1674042496134,27.29437871,1576.8,1576.7,0.05386983]
[1674042496436,26.2666122,1576.8,1576.7,0.05386983]
[1674042498014,24.60398528,1576.8,1576.7,0.05386983]
[1674042498596,26.2666122,1576.8,1576.7,0.05386983]
[1674042498806,27.29437871,1576.8,1576.7,0.05386983]
[1674042499143,27.17103639,1576.8,1576.7,0.05386983]
[1674042499357,27.64683639,1576.8,1576.7,0.05386983]
[1674042499551,25.98420947,1576.8,1576.7,0.05386983]
[1674042499987,27.64435753,1576.8,1576.7,0.05386983]
[1674042501161,29.10083354,1576.8,1576.7,0.05386983]
[1674042501704,31.09598584,1576.8,1576.7,0.05386983]
[1674042502214,29.10083354,1576.8,1576.7,0.05386983]
[1674042502590,35.75999854,1576.8,1576.7,0.05386983]
[1674042503207,34.55299854,1576.8,1576.7,0.05386983]
[1674042503471,35.88026949,1576.8,1576.7,0.05386983]
[1674042503993,35.21629809,1576.8,1576.7,0.05386983]
[1674042504835,35.21629809,1576.8,1576.6,0.03778847]
[1674042505055,23.15403349,1576.7,1576.6,0.03778847]
[1674042505309,23.22003349,1576.7,1576.6,0.03778847]
[1674042509168,22.19226698,1576.7,1576.6,0.03778847]
[1674042509350,23.85126875,1576.7,1576.6,0.03778847]
[1674042509771,32.22996875,1576.7,1576.6,0.03778847]
[1674042510012,33.25773526,1576.7,1576.6,0.03778847]
[1674042510717,32.26254166,1576.7,1576.6,0.03778847]
[1674042511152,35.37916573,1576.7,1576.6,0.03778847]
[1674042511452,37.03833073,1576.7,1576.6,0.03778847]
[1674042511699,36.56243073,1576.7,1576.6,0.03778847]
[1674042512024,34.90326573,1576.7,1576.6,0.03778847]
[1674042514025,43.23515978,1576.7,1576.6,0.03778847]
[1674042514866,20.02828,1576.6,1576.5,0.00957149]
[1674042515086,32.06368827,1576.6,1576.5,0.00957149]
[1674042515450,37.06368827,1576.6,1576.5,0.00957149]
[1674042516193,38.39010238,1576.6,1576.5,0.00957149]
[1674042517144,37.06368827,1576.6,1576.5,0.00957149]
[1674042517503,37.06368827,1576.6,1576.4,0.06478884]
[1674042517691,7.43066277,1576.5,1576.4,0.06478884]
[1674042517859,26.52614277,1576.5,1576.4,0.06478884]
[1674042518331,34.32524277,1576.5,1576.4,0.06478884]
[1674042519763,34.32524277,1576.5,1576.3,0.07424673]
[1674042519974,23.67669506,1576.4,1576.3,0.07424673]
[1674042520187,23.74269506,1576.4,1576.3,0.07424673]
[1674042520383,23.07932532,1576.4,1576.3,0.07424673]
[1674042520631,23.74270095,1576.4,1576.3,0.07424673]
[1674042520833,22.74764634,1576.4,1576.3,0.07424673]
[1674042521805,23.07932532,1576.4,1576.3,0.07424673]
[1674042525872,24.40577331,1576.4,1576.3,0.07424673]
[1674042526836,22.53568412,1576.4,1576.3,0.07424673]
[1674042527172,21.54062951,1576.4,1576.3,0.07424673]
[1674042527326,20.512863,1576.4,1576.3,0.07424673]
[1674042527875,19.84059976,1576.4,1576.3,0.07424673]
[1674042528085,19.7600388,1576.4,1576.3,0.07424673]
[1674042528593,19.09668,1576.4,1576.3,0.07424673]
[1674042528795,20.83571525,1576.4,1576.3,0.07424673]
[1674042529004,21.80528428,1576.4,1576.3,0.07424673]
[1674042529504,20.83571525,1576.4,1576.3,0.07424673]
[1674042529793,21.80528428,1576.4,1576.3,0.07424673]
[1674042530627,22.13667766,1576.4,1576.3,0.07424673]
[1674042530843,23.13245154,1576.4,1576.3,0.07424673]
[1674042531683,21.80600355,1576.4,1576.3,0.07424673]
[1674042532206,22.13667766,1576.4,1576.3,0.07424673]
[1674042532429,23.13271568,1576.4,1576.3,0.07424673]
[1674042533631,21.80626769,1576.4,1576.3,0.07424673]
[1674042533975,23.13271568,1576.4,1576.3,0.07424673]
[1674042535676,21.80626769,1576.4,1576.3,0.07424673]
[1674042536060,23.13271568,1576.4,1576.3,0.07424673]
[1674042536277,21.80626769,1576.4,1576.3,0.07424673]
[1674042537947,23.13271568,1576.4,1576.3,0.07424673]
[1674042538919,23.13271568,1576.4,1576.3,0.07424673]
[1674042540669,21.80626769,1576.4,1576.3,0.07424673]
[1674042540879,23.13271568,1576.4,1576.3,0.07424673]
[1674042541292,22.13667766,1576.4,1576.3,0.07424673]
[1674042541666,23.79487115,1576.4,1576.3,0.07424673]
[1674042541818,22.46842316,1576.4,1576.3,0.07424673]
[1674042542443,22.46842316,1576.4,1576.2,0.08330462]
[1674042542709,3.07028117,1576.3,1576.2,0.08330462]
[1674042542924,22.10219117,1576.3,1576.2,0.08330462]
[1674042543110,22.16819117,1576.3,1576.2,0.08330462]